Cogmind - Beta 11.1 @@@ ROGUE MODE // 2022.10.07 @ 22:40:01 Player: TravelDemon Result: Self-destructed Performance ------------- Evolutions (1) 500 Regions Visited (3) 600 Robots Destroyed (16) 80 Value Destroyed (297) 297 Prototype IDs (0) 0 Alien Tech Used (0) 0 Bonus (12) 12 TOTAL SCORE: 1489 Bonus ------- High Alert Combat Kills 12 Cogmind --------- Core Integrity 194/400 Matter 267/300 Energy 87/200 System Corruption 0% Temperature Cool (7) Movement Hovering (60) Location -9/Materials Parts ------- > --- POWER (1) -------- (None) > --- PROPULSION (2) --- Improved Hover Unit > --- UTILITY (4) ------ Small Storage Unit Small Battery > --- WEAPON (2) ------- (None) > --- INVENTORY (8) ---- Wheel Improved Hover Unit Flight Unit Light EM Pulse Cannon EMP Blaster Grenade Launcher Peak State ------------ > --- POWER ------------ (None) > --- PROPULSION ------- Improved Hover Unit Improved Hover Unit > --- UTILITY ---------- Small Storage Unit Small Battery Targeting Computer > --- WEAPON ----------- Light EM Pulse Cannon EMP Blaster > --- INVENTORY -------- Light Ion Engine Wheel Improved Hover Unit Flight Unit Light EM Pulse Cannon EMP Blaster Grenade Launcher [Rating: 12] Favorites ----------- Power Light Ion Engine Engine Light Ion Engine Propulsion Flight Unit Treads Light Treads Leg Aluminum Leg Wheel Wheel Hover Unit Improved Hover Unit Flight Unit Flight Unit Utility Small Storage Unit Storage Small Storage Unit Processor Targeting Computer Weapon Light Assault Rifle Energy Gun Small Laser Energy Cannon Light EM Pulse Cannon Ballistic Gun Light Assault Rifle Launcher Grenade Launcher Build | -11 -10 -10 -9 ------- Run | Scr Mat Min Mat Slots Evolved 2 | . . . 2 Power . | . . . . Propulsion . | . . . . Utility 2 | . . . 2 Weapon . | . . . . Parts Attached 26 | 8 9 . 9 Power 2 | 1 . . 1 Engine 2 | 1 . . 1 Core . | . . . . Reactor . | . . . . Propulsion 10 | 4 3 . 3 Treads 1 | 1 . . . Leg 2 | 2 . . . Wheel 1 | 1 . . . Hover 2 | . . . 2 Flight 4 | . 3 . 1 Utility 5 | 1 3 . 1 Device . | . . . . Storage 4 | 1 2 . 1 Processor 1 | . 1 . . Hackware . | . . . . Protection . | . . . . Artifact . | . . . . Weapon 9 | 2 3 . 4 Energy Gun 3 | 1 2 . . Energy Cannon 1 | . . . 1 Ballistic Gun 3 | 1 1 . 1 Ballistic Cannon . | . . . . Launcher 2 | . . . 2 Special Weapon . | . . . . Impact Weapon . | . . . . Slashing Weapon . | . . . . Piercing Weapon . | . . . . Special Melee Weapon . | . . . . Unidentified Prototypes . | . . . . Corrupted Parts 1 | . 1 . . System Corruption 2 | . 2 . . Parts Lost 10 | . 3 . 7 Power 2 | . 1 . 1 Propulsion 3 | . . . 3 Utility 1 | . . . 1 Weapon 4 | . 2 . 2 Highest Loss Streak 5 | . 3 . 5 To Critical Strikes . | . . . . Average Slot Usage (%) 70 | . 79 85 62 Engine 2 | . 5 . . Treads 3 | . 8 . . Wheel 3 | . 8 . . Hover 5 | . . . 9 Flight 12 | . 11 28 11 Storage 13 | . 14 14 12 Processor 9 | . 9 14 9 Energy Gun 8 | . 13 14 4 Ballistic Gun 7 | . 7 14 6 Launcher 3 | . . . 5 Naked Turns . | . . . . Heaviest Build 15 | 11 15 7 14 Greatest Support 20 | 10 20 8 14 Greatest Overweight (x) 3 | 3 2 . 1 Average Overweight (x) . | 1 . . . Largest Inventory Capacity 10 | 8 10 8 8 Average Capacity 7 | 7 8 8 8 Most Carried 8 | 6 8 8 8 Average Carried 6 | 1 6 8 7 Final Capacity 8 | 8 8 8 8 Final Carried 8 | 7 8 8 6 Class Distribution -------------------- 100% | Mutant Dominant Class ---------------- Mutant | -10/Materials Mutant | -10/Mines Mutant | -9/Materials Resources | -11 -10 -10 -9 ----------- Run | Scr Mat Min Mat Matter Collected 473 | 168 120 . 185 Remotely . | . . . . Salvage Created 312 | . 120 . 192 Parts 31 | . 10 . 21 Haulers Intercepted 1 | . . . 1 Recyclers Shooed 1 | . 1 . . Parts Field Recycled . | . . . . Retrieved Matter . | . . . . Parts Self-Destructed . | . . . . Prevented . | . . . . Kills | -11 -10 -10 -9 ------- Run | Scr Mat Min Mat Combat Hostiles Destroyed 13 | . 4 . 9 Guns 5 | . 4 . 1 AOE 8 | . . . 8 Classes Destroyed 6 | . 3 . 3 Hauler 1 | . . . 1 Operator 1 | . . . 1 Watcher 1 | . 1 . . Swarmer 10 | . 3 . 7 Grunt 2 | . 1 . 1 Sentry 1 | . . . 1 Best Kill Streak 5 | . 5 . 3 Combat Bots Only 4 | . 4 . 3 Max Kills in Single Turn 3 | . 2 . 3 Gunslinging . | . . . . Exploded 3 | . . . 3 Melee . | . . . . Uniques/NPCs Destroyed . | . . . . Combat | -11 -10 -10 -9 -------- Run | Scr Mat Min Mat Damage Taken 997 | . 308 44 645 Core 264 | . 58 . 206 Absorbed by Shields . | . . . . Core Remaining (%) 88 | 100 . 76 . Volleys Fired 41 | . 17 . 24 Largest 2 | . 2 . 2 Hottest 89 | . 60 . 89 Shots Fired 54 | . 22 . 32 Gun 40 | . 22 . 18 Cannon 4 | . . . 4 Launcher 10 | . . . 10 Special . | . . . . Kinetic 20 | . 7 . 13 Thermal 7 | . 2 . 5 Explosive 7 | . . . 7 Electromagnetic 20 | . 13 . 7 Robot Hit Streak 7 | . 3 . 7 Robot Miss Streak 4 | . 2 . 4 Penetration Max . | . . . . Secondary Targets 1 | . 1 . . Max Gunslinging Chain 1 | . 1 . . Shots Hit Robots 33 | . 13 . 20 Core Hits 24 | . 7 . 17 Critical Kills . | . . . . Critical Parts Destroyed 1 | . 1 . . Critical Strikes 1 | . 1 . . Destroy 1 | . 1 . . Melee Attacks . | . . . . Impact . | . . . . Slashing . | . . . . Piercing . | . . . . Sneak Attacks . | . . . . Combat Hostiles . | . . . . Follow-up Attacks . | . . . . Damage Inflicted 924 | . 233 . 691 Guns 244 | . 147 . 97 Cannons 60 | . . . 60 Explosions 612 | . 86 . 526 Melee . | . . . . Ramming 8 | . . . 8 Kinetic 120 | . 46 . 74 Thermal 45 | . 22 . 23 Explosive 443 | . . . 443 Electromagnetic 308 | . 165 . 143 Impact . | . . . . Slashing . | . . . . Piercing . | . . . . Highest Corruption 5 | . 5 5 . Average Corruption 4 | . 4 5 . Corruption Purged . | . . . . Corruption Blocked . | . . . . Effects 2 | . 1 1 . Matter Fused 1 | . 1 . . Data Loss (minor) 1 | . . 1 . Overload Shots . | . . . . Overflow Damage . | . . . . Projectiles . | . . . . Explosions . | . . . . Melee . | . . . . Knockbacks . | . . . . Impact . | . . . . Kinetic . | . . . . Secondary . | . . . . Self-Inflicted Damage 60 | . . . 60 Shots 4 | . . . 4 Rammed 4 | . . . 4 Targets Rammed 4 | . . . 4 Kicked . | . . . . Crushed . | . . . . Highest Temperature 38 | . 29 . 38 Average Temperature 12 | . 10 . 13 Received Heat Transfer 279 | . 84 15 180 Siege Activations . | . . . . Robots Corrupted . | . . . . Combat Hostiles . | . . . . Parts Fried 1 | . 1 . . Impact Corruptions . | . . . . Robots Melted . | . . . . Combat Hostiles . | . . . . Parts Melted 1 | . . . 1 Heat Transferred 100 | . 50 . 50 Parts Sabotaged . | . . . . Parts Stolen . | . . . . Parts Stripped . | . . . . Power Chain Reactions . | . . . . Missiles Intercepted . | . . . . Alert | -11 -10 -10 -9 ------- Run | Scr Mat Min Mat Peak Influence 609 | . 223 86 609 Initial 86 | . . 86 33 Average 200 | . 110 86 317 Maximum Alert Level 2 | . 1 . 2 Low Security (%) 69 | 100 86 100 48 Level 1 8 | . 13 . 8 Level 2 21 | . . . 43 Level 3 . | . . . . Level 4 . | . . . . Level 5 . | . . . . High Security . | . . . . Max Security . | . . . . Squads Dispatched 5 | . 2 . 3 Investigation . | . . . . Extermination . | . . . . Reinforcement 5 | . 2 . 3 Assault . | . . . . Garrison . | . . . . Intercept . | . . . . Searches Triggered . | . . . . Construction Impeded . | . . . . Haulers Reinforced . | . . . . Active Scanning Responses . | . . . . Cargo Convoy Interrupts . | . . . . Stealth | -11 -10 -10 -9 --------- Run | Scr Mat Min Mat Distress Signals 1 | . 1 . . Communications Jammed . | . . . . Distress Signals . | . . . . Times Spotted 46 | . 17 7 22 Peak Tracking Total 6 | . 6 4 6 Tactical Retreats 5 | . 2 . 3 Traps | -11 -10 -10 -9 ------- Run | Scr Mat Min Mat Traps Triggered 2 | . 2 . . Indirectly . | . . . . Trap Hack Attempts . | . . . . Triggered . | . . . . Disarmed . | . . . . Reprogrammed . | . . . . Reused . | . . . . Traps Extracted . | . . . . Installed . | . . . . Triggered . | . . . . Machines | -11 -10 -10 -9 ---------- Run | Scr Mat Min Mat Machines Disabled 5 | . 3 . 2 Max in Single Turn 3 | . 3 . 2 Machines Sabotaged . | . . . . Garrisons Compromised . | . . . . Overloaded Fab Kills . | . . . . Hacking | -11 -10 -10 -9 --------- Run | Scr Mat Min Mat Machines Accessed 8 | . 4 . 4 Terminals 7 | . 4 . 3 Fabricators . | . . . . Repair Stations . | . . . . Recycling Units . | . . . . Scanalyzers 1 | . . . 1 Garrison Access . | . . . . Total Hacks 23 | . 8 . 15 Successful 12 | . 4 . 8 Failed 11 | . 4 . 7 Catastrophic 3 | . 1 . 2 Database Lockouts . | . . . . Manual 19 | . 8 . 11 Terminals 19 | . 8 . 11 Fabricators . | . . . . Repair Stations . | . . . . Recycling Units . | . . . . Scanalyzers 4 | . . . 4 Garrison Access . | . . . . Terminal Hacks 2 | . 1 . 1 Terminal Index 2 | . 1 . 1 Fabricator Hacks . | . . . . Repair Station Hacks . | . . . . Recycling Unit Hacks . | . . . . Scanalyzer 4 | . . . 4 Insert Component 2 | . . . 2 Analyze 2 | . . . 2 Garrison Access Hacks . | . . . . Unauthorized Hacks 6 | . 3 . 3 Terminals 6 | . 3 . 3 Assimilate 1 | . 1 . . Botnet 5 | . 2 . 3 Fabricators . | . . . . Repair Stations . | . . . . Recycling Units . | . . . . Scanalyzers . | . . . . Garrison Access . | . . . . Data Cores Recovered . | . . . . Used . | . . . . Hacking Detections 8 | . 4 . 4 Full Trace Events . | . . . . Feedback Events . | . . . . Feedback Blocked . | . . . . Robot Schematics Acquired . | . . . . Robots Built . | . . . . Authchips . | . . . . Time . | . . . . Total Robot Build Rating . | . . . . Part Schematics Acquired 2 | . . . 2 Parts Built . | . . . . Authchips . | . . . . Time . | . . . . Total Part Build Rating . | . . . . Parts Repaired . | . . . . Time . | . . . . Parts Recycled . | . . . . Recycled Matter . | . . . . Retrieved Matter . | . . . . Retrieved Components . | . . . . Parts Scanalyzed 2 | . . . 2 Part Schematics Acquired 2 | . . . 2 Parts Damaged . | . . . . Bothacking | -11 -10 -10 -9 ------------ Run | Scr Mat Min Mat Used RIF Installer . | . . . . Robots Hacked . | . . . . Non-combat . | . . . . Combat . | . . . . Robot Hacks Applied . | . . . . Relay Couplers Released . | . . . . Fabnet Peak Effective % . | . . . . Robots Rewired . | . . . . Allies Hacked . | . . . . Hacks Repelled . | . . . . Allies | -11 -10 -10 -9 -------- Run | Scr Mat Min Mat Total Allies 1 | . 1 . . Largest Group 1 | . 1 1 . Highest-Rated Group 10 | . 10 10 . Highest-Rated Ally 10 | . 10 10 . Total Orders . | . . . . Ally Attacks . | . . . . Total Damage . | . . . . Kills . | . . . . Allies Corrupted . | . . . . Allies Melted . | . . . . Intel | -11 -10 -10 -9 ------- Run | Scr Mat Min Mat Robot Analysis Total . | . . . . Derelict Logs Recovered 1 | . . 1 . Drone Launches . | . . . . Drone Recoveries . | . . . . Exploration | -11 -10 -10 -9 ------------- Run | Scr Mat Min Mat Turns Passed 799 | 78 284 42 395 Spaces Moved 1048 | 56 411 112 469 Core 34 | 32 2 . . Treads 12 | . 12 . . Legs . | . . . . Wheels 146 | 24 122 . . Hover 206 | . . . 206 Flight 650 | . 275 112 263 Fastest Speed 37 | 50 37 37 37 Average Speed 51 | 109 53 37 45 Slowest Speed 200 | 200 160 37 120 Overloaded Moves . | . . . . Propulsion Burnouts . | . . . . Robots Hopped 19 | . 5 8 6 Cave-ins Triggered . | . . . . Exploration Rate (%) 33 | 4 66 37 28 Regions Visited 3 Branch Regions 1 Pre-discovered Areas . | . . . . Known Exits Taken . | . . . . Unknown Exits Taken 3 | 1 1 1 . Scrap Searched . | . . . . Spaces Dug . | . . . . Terrain Destroyed 50 | . . . 50 Melee . | . . . . Projectile . | . . . . AOE 50 | . . . 50 Terrain Rammed . | . . . . Walls Destroyed . | . . . . Machines Disabled . | . . . . Actions | -11 -10 -10 -9 --------- Run | Scr Mat Min Mat Total 1238 | 70 450 103 615 Wait 107 | . 1 . 106 Move 1011 | 55 401 98 457 Hop 15 | . 4 5 6 Pick Up 14 | 4 6 . 4 Fast Attach 16 | 8 6 . 2 Attach 9 | . 3 . 6 Detach 9 | 3 5 . 1 Swap 1 | . . . 1 Drop 11 | . 7 . 4 Fire 41 | . 17 . 24 Melee . | . . . . Ram 4 | . . . 4 Kick . | . . . . Crush . | . . . . Escape Stasis . | . . . . Rewire . | . . . . Trap . | . . . . Miscellaneous . | . . . . Route ------- -11/Scrapyard -10/Materials (discovered 2 exits: *Mat / [*Min]) -10/Mines -9/Materials (discovered 2 exits: Mat / Min) History --------- Turn | Location | Event 4 | -11/Scrapyard | Discovered new exit (range 15) 79 | -11/Scrapyard | Entered Materials 247 | -10/Materials | Lost 3 parts (1p2w) 250 | -10/Materials | Discovered new exit (range 15) 289 | -10/Materials | Discovered new exit (range 9) 304 | -10/Materials | Build established: Mutant 363 | -10/Materials | Entered Mines 363 | -10/Mines | Accompanied by 1 ally 397 | -10/Mines | Discovered new exit (range 11) 398 | -10/Mines | Learned 8 Materials zone layouts 405 | -10/Mines | Entered Materials 405 | -9/Materials | Evolved 2 slots: Utility x2 406 | -9/Materials | Identified exit to Mines 406 | -9/Materials | Identified exit to Materials 798 | -9/Materials | Core integrity fell below 50% 800 | -9/Materials | Self-destructed Last Messages --------------- 00723_ K-01 Serf cleans the Terminal. 00727_ U-05 Engineer builds a Wall. 00734_ Acquired EMP Blaster. 00735_ Dropped Lgt. Assault Rifle. 00737_ Acquired EMP Blaster. 00752_ R-06 Scavenger collects Aluminum Leg. 00757_ R-06 Scavenger collects Ion Engine. 00760_ Targeting Computer destroyed. 00760_ R-06 Scavenger collects Aluminum Leg. 00763_ ALERT: Hostiles spotted, dispatching reinforcements to Terminal M003. 00764_ A-02 Transporter destroyed. 00764_ Door malfunctions. 00779_ Imp. Hover Unit destroyed. 00788_ Lgt. EM Pulse Cannon destroyed. 00788_ Lgt. Ion Engine destroyed. 00790_ Slammed into Y-45 Defender. 00794_ EMP Blaster destroyed. 00794_ Critical hit (Burn: +37). 00797_ U-05 Engineer lays Concrete. Map ----- +----------------------------------------------------+ | ????????????????????????????????# # | | ????????????????????????????????# ###+ | | ????????????????????????????????# ## # | | ????????????????????????????????# ## " #![ | | ????????????????????????????????########### T # [ | | ??????????????????????????????????????##### " # | | ?????????????????????????????????????? # ## | | " # ## ?????????????????????????##### # | | " ######## ?????????????????????????????# ## | | #??# #?# ??????????????????################# | | ###??# #?# ??????????????????# #?????# | | ?????# #?# ??????????????????# = #????## | | ??######## ??????????????????# ###### | | ??# # ??????????????????# """ """ + | | ??# # ??????????????????# """ """ # T | | ??# + ??????????????????# """ """ ## # | | ??# # ??????????????????# ## #### | | ??# # ??????????????????# ! ## #??? | | ??# # ??????????????????############ #??? | | ??######## ?????????????????????????????# #??? | | ??######## ?????????????????????????????# #??? | | ??# # ??????????????#######????????# #??? | | ??#""" # g##/############ #????????# #### | | ??#""" # g = #????????# ## | | ??#""" # !!! ########## ## | | ??#""" + !!%!= @ Y u ! ## | | ??# # !#w####### Y ########## ## " | | ########## ??????????????###/###????????# ## " | | #?# ??????????????? ????????## ## " | | "" #?# ?????????????# """"" ??????## ## | | "" #?# ?????????????# ""T"" #????### ## | | "" #?# > ?????????????# #????## ### | | #?# ?????????????#%! #????## | | "" #?# ?????????????#! """ #????# | | "" #?# ?????????????#! """ ????## | | "" #?## ?????????????# "???##????# ### | | #??# ?????????????# ?????????####### | | #######??# ??????????????####????????????????# " | | ?????????# "??????????????????????????????????# " | | ?????????# "??????????????????????????????????# " | | ?????????# "??????????????????????????????????# | | ????###### ??????????????????????????????????# | | ????# ??????????????????????????????????# | | ????# ??????????????????????????????????# | | ????# "??????????????????????????????????# ! | | ######+### "??????????????????????????????????### | | # # "????????????????????????????????????? | | "" # + ????????????????????????????????????? | | "" # # ??????????????????????????????####### | | "" # # ??????????????????????????????# | +----------------------------------------------------+ Best States ------------- Heat Dissipation 28 Energy Generation 10 Energy Capacity 225 Matter Stores 288 Matter Capacity 300 Sight Range 16 Terrain Scan Density 10 Evasion (%) 62 Targeting Accuracy 5 Recoil Reduction 1 Item Schematics ----------------- Flight Unit | -9/Materials | Scanalyzed Lgt. Ion Engine | -9/Materials | Scanalyzed Robot Schematics ------------------ None Fabricated ------------ Nothing Alien Tech Used ----------------- None Achievements -------------- None Challenges ------------ None Game ------ Seed DispersionMediumRifle Manual? 0 Play Time 00:24:12 Cumulative 108.1 hours Start 2022.10.07 @ 22:22:55 End 2022.10.07 @ 22:40:01 Sessions 1 Manual Loads 0 Difficulty Rogue Special Mode None Game No. 117 Rogue 114 Adventurer 0 Explorer 3 Win Type - Total 3 Types 3/0/0/0/0/0/0/0/0 Lore% 52 Gallery% 55 Achievement% 56 Wizard Run 0 Options --------- ASCII 0 Keyboard 1 Movement Numpad Keybinds 0 Fullscreen 2 Font 18/SmallcapsGlow Map View 76x50 Tactical HUD 1 Map Filters NONE Filters NONE Steam 1 RUN: 21b079cc-eb66-4269-8b6c-b80a46b53f33